bitfinex-derivatives/quotes_SOLF0:USTF0_20250901
["timestamp","ask_amount","ask_price","bid_price","bid_amount"]
[1756716869009,122.02,203.32,203.29,4.38158685]
[1756716869217,7.56,203.31,203.3,4.38158685]
[1756716870810,129.58,203.31,203.3,4.38158685]
[1756716872914,129.58,203.31,203.3,4.37714528]
[1756716873415,129.58,203.31,203.3,4.37672677]
[1756716873815,129.58,203.31,203.3,4.37638082]
[1756716876018,130.08,203.31,203.18,2.34460935]
[1756716876215,129.58,203.31,203.19,4.3751051]
[1756716876521,129.58,203.31,203.18,2.34460935]
[1756716880019,129.58,203.31,203.07,110.19898438]
[1756716880020,4.84,203.28,203.13,9.78460935]
[1756716880219,2.34460935,203.29,203.13,9.78460935]
[1756716880414,4.84,203.28,203.13,9.78460935]
[1756716880818,2.34460935,203.29,203.13,9.78460935]
[1756716881019,4.84,203.28,203.13,9.78460935]
[1756716881317,4.84,203.28,203.14,7.44]
[1756716883222,2.34460935,203.29,203.14,7.44]
[1756716883423,4.84,203.28,203.14,7.44]
[1756716884628,36.02,203.27,203.14,7.44]
[1756716884922,36.02,203.27,203.07,114.32045287]
[1756716884923,71.94,203.26,203.17,7.44]
[1756716885125,89.42,203.26,203.2,7.44]
[1756716886028,89.42,203.26,203.2,8.87855297]
[1756716887726,89.42,203.26,203.2,1.43855297]
[1756716888226,89.42,203.26,203.16,7.44]
[1756716888430,89.42,203.26,203.18,1.43855297]
[1756716889326,94.26,203.26,203.16,8.87855297]
[1756716891227,4.84,203.26,203.19,1.43855297]
[1756716891426,27.42,203.25,203.19,8.87855297]
[1756716891628,27.42,203.25,203.19,1.43855297]
[1756716894533,27.42,203.25,203.09,4.11422226]
[1756716894534,4.84,203.23,203.09,11.55422226]
[1756716894731,1.43855297,203.24,203.09,7.44]
[1756716894932,4.85,203.2,203.1,1.43855297]
[1756716895128,6.08,203.19,203.1,1.43855297]
[1756716895926,6.08,203.19,203.09,7.44]
[1756716896127,6.08,203.19,203.09,8.87855297]
[1756716897027,6.08,203.19,203.09,7.44]
[1756716897219,4.85,203.18,203.07,1.43855297]
[1756716897424,11.86,203.17,203.1,1.43855297]
[1756716897628,17.32,203.17,203.1,1.43855297]
[1756716898028,4.85,203.18,203.1,1.43855297]
[1756716898228,22.5,203.17,203.1,1.43855297]
[1756716900431,4.86451564,203.16,203.11,0.03571357]
[1756716901531,0.03451564,203.16,203.11,0.03571357]
[1756716901727,4.83,203.15,203.11,0.03571357]
[1756716902228,0.03451564,203.16,203.11,0.03571357]
[1756716902430,4.83,203.15,203.11,0.03571357]
[1756716903132,0.03451564,203.16,203.11,0.03571357]
[1756716903434,4.86451564,203.16,203.11,0.03571357]
[1756716903729,4.83,203.15,203.11,0.03571357]
[1756716904327,0.03451564,203.16,203.11,0.03571357]
[1756716904531,0.03451564,203.16,203.12,1.43855297]
[1756716905128,0.03451564,203.16,203.11,0.03571357]
[1756716905332,0.03451564,203.16,203.11,8.98426654]
[1756716905926,0.03451564,203.16,203.12,7.51]
[1756716906130,0.03451564,203.16,203.11,1.47426654]
[1756716906326,0.03451564,203.16,203.11,0.03571357]
[1756716906839,4.86451564,203.16,203.11,0.03571357]
[1756716907135,0.03451564,203.16,203.11,0.03571357]
[1756716907435,1.47306861,203.16,203.11,0.03571357]
[1756716907638,4.83,203.15,203.11,0.03571357]
[1756716907941,1.47306861,203.16,203.11,0.03571357]
[1756716908239,0.03451564,203.16,203.11,0.03571357]
[1756716910042,4.83,203.15,203.11,0.03571357]
[1756716910742,4.86451564,203.16,203.11,0.03571357]
[1756716911837,1.47306861,203.16,203.11,0.03571357]
[1756716912041,4.83,203.15,203.11,0.03571357]
[1756716916951,66.58,203.14,203.11,0.03571357]
[1756716917751,0.03451564,203.16,203.11,0.03571357]
[1756716918049,0.03451564,203.16,203.12,7.51]
[1756716918252,122.55451564,203.16,203.11,0.03571357]
[1756716918452,0.03451564,203.16,203.11,0.03571357]
[1756716918642,0.03451564,203.16,203.11,7.54571357]
[1756716920451,122.73451564,203.16,203.11,7.54571357]
[1756716920649,0.03451564,203.16,203.12,7.51]
[1756716920851,0.03451564,203.16,203.13,8.94855297]
[1756716922953,0.03451564,203.16,203.14,7.51]
[1756716923150,0.03451564,203.16,203.13,1.43855297]
[1756716923350,0.03451564,203.16,203.14,7.51]
[1756716923545,0.03451564,203.16,203.13,1.43855297]
[1756716924351,0.03451564,203.16,203.14,7.51]
[1756716924748,0.03451564,203.16,203.14,8.0]
[1756716928759,0.03451564,203.16,203.13,1.43855297]
[1756716929158,0.03451564,203.16,203.13,9.43855297]
[1756716929759,0.03451564,203.16,203.13,1.43855297]
[1756716930362,0.03451564,203.16,203.13,9.43855297]
[1756716935567,0.03451564,203.16,203.13,1.43855297]
[1756716935767,330.88,203.22,203.14,8.0]
[1756716936062,453.04,203.22,203.18,8.0]
[1756716936260,122.16,203.22,203.18,8.0]
[1756716937069,122.16,203.22,203.18,8.03691019]
[1756716937665,122.18,203.22,203.18,8.03691019]
[1756716938374,4.88,203.21,203.13,4.11422226]
[1756716938558,1.43855297,203.2,203.11,4.11422226]
[1756716938758,1.43855297,203.2,203.09,12.11422226]
[1756716938963,4.88,203.21,203.09,12.11422226]
[1756716939165,4.88,203.21,203.11,1.43855297]
[1756716942270,123.98,203.2,203.11,1.43855297]
[1756716942466,4.88,203.21,203.12,8.0]
[1756716942770,123.92,203.19,203.14,1.43855297]
[1756716942968,79.80671882,203.25,203.14,1.47572751]
[1756716943168,0.03657726,203.19,203.14,1.47572751]
[1756716945568,0.03657726,203.19,203.14,0.03717454]
[1756716945968,123.78,203.18,203.14,0.03717454]
[1756716947873,4.84,203.17,203.14,0.03717454]
[1756716949072,125.21855297,203.18,203.14,0.03717454]
[1756716949274,1.43855297,203.15,203.14,0.03717454]
[1756716949477,6.27855297,203.15,203.14,0.03717454]
[1756716950069,6.77855297,203.15,203.04,1.43855297]
[1756716950268,6.27855297,203.15,203.04,1.43855297]
[1756716951379,0.03135161,203.12,203.05,8.0]
[1756716951679,24.49135161,203.12,203.05,8.0]
[1756716952378,0.03135161,203.12,203.06,1.43855297]
[1756716953478,4.83135161,203.12,203.03,1.43855297]
[1756716954280,17.98,203.11,203.06,1.43855297]
[1756716954584,24.57135161,203.12,203.07,8.0]
[1756716955378,0.03135161,203.12,203.07,8.0]
[1756716957777,0.03135161,203.12,203.06,1.43855297]
[1756716957984,0.03135161,203.12,203.03,7.92]
[1756716958279,1.43855297,203.11,203.03,7.92]
[1756716959584,31.76,203.1,203.03,9.35855297]
[1756716960482,0.03135161,203.12,203.03,9.35855297]
[1756716960688,6.26,203.11,203.03,9.35855297]
[1756716962086,0.03135161,203.12,203.03,9.35855297]
[1756716962385,6.55135161,203.12,203.06,1.43855297]
[1756716962685,6.52,203.12,203.06,1.43855297]
[1756716962881,4.81,203.21,203.06,1.43855297]
[1756716963087,0.0327931,203.11,203.06,1.43855297]
[1756716963281,4.81,203.18,203.06,9.35855297]
[1756716963480,46.4,203.17,203.06,9.35855297]
[1756716963785,0.03547272,203.11,203.06,1.43855297]
[1756716963985,0.03547272,203.11,203.03,7.92]
[1756716965990,6.24855297,203.1,202.99,4.11422226]
[1756716966181,6.24855297,203.1,202.98,9.35855297]
[1756716966182,4.81,203.08,202.98,9.35855297]
[1756716966683,0.03664059,203.05,202.98,9.35855297]
[1756716966982,0.03664059,203.05,202.88,12.64]
[1756716966983,4.84664059,203.05,202.94,9.35855297]
[1756716967386,4.81,203.05,202.94,9.35855297]
[1756716967588,0.03481117,203.02,202.94,9.35855297]
[1756716968786,32.11481117,203.02,202.94,9.35855297]
[1756716970491,0.03481117,203.02,202.94,9.35855297]
[1756716971385,0.03481117,203.02,202.98,7.92]
[1756716971587,0.03481117,203.02,203.0,9.35855297]
[1756716971797,330.96,203.13,203.01,7.92]
[1756716971989,123.26,203.12,203.04,1.43855297]
[1756716972192,4.81,203.11,203.01,1.43855297]
[1756716972397,4.81,203.11,202.86,333.21605488]
[1756716972398,1.43855297,203.06,202.95,9.35855297]
[1756716972700,1.43855297,203.03,202.92,1.43855297]
[1756716972898,38.5,203.02,202.92,1.43855297]
[1756716973102,0.03176716,202.99,202.92,1.43855297]
[1756716973695,0.03176716,202.99,202.95,1.43855297]
[1756716973900,0.03176716,202.99,202.96,7.92]
[1756716975300,0.03176716,202.99,202.95,1.43855297]
[1756716975905,0.03176716,202.99,202.96,7.92]
[1756716976504,0.03176716,202.99,202.95,1.43855297]
[1756716976906,0.03176716,202.99,202.96,7.92]
[1756716978703,0.03176716,202.99,202.92,7.92]
[1756716978903,0.03176716,202.99,202.89,1.43855297]
[1756716979107,4.81,203.0,202.89,1.43855297]
[1756716979507,0.03164376,202.96,202.89,1.43855297]
[1756716980699,0.03164376,202.96,202.87,7.92]
[1756716980903,9.31855297,202.95,202.83,1.43855297]
[1756716981315,4.81,202.91,202.78,1.43855297]
[1756716981601,1.43855297,202.9,202.78,1.43855297]
[1756716981807,33.3,202.89,202.78,1.43855297]
[1756716982004,64.92,202.89,202.78,1.43855297]
[1756716982208,64.92,202.89,202.8,9.35855297]
[1756716982401,0.03604971,202.86,202.8,9.35855297]
[1756716983208,0.03604971,202.86,202.77,1.43855297]
[1756716983610,1.43855297,202.88,202.77,1.43855297]
[1756716983809,0.03286493,202.84,202.77,1.43855297]
[1756716984013,0.03286493,202.84,202.76,9.35855297]
[1756716985110,0.03286493,202.84,202.76,7.92]
[1756716985310,0.03286493,202.84,202.74,1.43855297]
[1756716985711,15.15855297,202.86,202.74,1.43855297]
[1756716986112,0.03209245,202.81,202.73,7.91]
[1756716987711,0.03209245,202.81,202.72,1.43855297]
[1756716988215,0.03209245,202.81,202.74,1.43855297]
[1756716988713,3.76,202.83,202.74,1.43855297]
[1756716989013,0.03573529,202.8,202.74,1.43855297]
[1756716989419,0.03573529,202.8,202.68,1.43855297]
[1756716989610,0.03573529,202.8,202.74,1.43855297]
[1756716990107,0.03573529,202.8,202.68,1.43855297]
[1756716990312,0.03573529,202.8,202.74,1.43855297]
[1756716997721,0.03573529,202.8,202.77,1.43855297]
[1756717000622,0.03573529,202.8,202.69,17.24]
[1756717000811,0.03573529,202.8,202.76,1.43855297]
[1756717001014,1.57855297,202.89,202.76,1.43855297]
[1756717001416,0.03232773,202.8,202.76,1.43855297]
[1756717001619,1.57855297,202.89,202.76,1.43855297]
[1756717002020,0.03605847,202.8,202.76,1.43855297]
[1756717002223,1.57855297,202.89,202.76,1.43855297]
[1756717002523,0.03631918,202.8,202.76,1.43855297]
[1756717002920,1.57855297,202.89,202.76,1.43855297]
[1756717003120,0.03688271,202.8,202.76,1.43855297]
[1756717003520,0.16,202.86,202.76,1.43855297]
[1756717003724,0.03625912,202.8,202.76,1.43855297]
[1756717003920,0.03625912,202.8,202.79,1.43855297]
[1756717004125,1.43855297,202.89,202.79,1.43855297]
[1756717004321,0.03673472,202.82,202.79,1.43855297]
[1756717008825,1.43855297,202.87,202.76,1.43855297]
[1756717009325,1.43855297,202.87,202.74,1.43855297]
[1756717009525,1.43855297,202.84,202.71,1.43855297]
[1756717011326,331.4,202.9,202.74,1.43855297]
[1756717011529,1.43855297,202.85,202.74,1.43855297]
[1756717011829,122.54,202.84,202.74,1.43855297]
[1756717015430,122.54,202.84,202.68,1.43855297]
[1756717015631,122.54,202.84,202.74,1.43855297]
[1756717016526,122.54,202.84,202.68,1.43855297]
[1756717016729,122.54,202.84,202.74,1.43855297]
[1756717017924,1.43855297,202.85,202.74,1.43855297]
[1756717018130,122.52,202.83,202.74,1.43855297]
[1756717019837,122.52,202.83,202.71,1.43855297]
[1756717020026,1.43855297,202.82,202.71,1.43855297]
[1756717020233,122.52,202.83,202.71,1.43855297]
[1756717020832,122.52,202.82,202.71,1.43855297]
[1756717022035,331.4,202.9,202.74,1.43855297]
[1756717022235,1.43855297,202.85,202.74,1.43855297]
[1756717022732,38.1,202.84,202.74,1.43855297]
[1756717023033,38.1,202.84,202.69,4.11422226]
[1756717023235,38.1,202.84,202.73,1.43855297]
[1756717023536,1.43855297,202.85,202.73,1.43855297]
[1756717023727,66.1,202.84,202.73,1.43855297]
[1756717023927,1.43855297,202.85,202.73,1.43855297]
[1756717024136,92.6,202.84,202.7,4.11422226]
[1756717024335,92.6,202.84,202.75,1.43855297]
[1756717024739,92.6,202.84,202.71,4.11422226]
[1756717024928,92.6,202.84,202.75,1.43855297]
[1756717026136,1.43855297,202.86,202.75,1.43855297]
[1756717026337,117.9,202.84,202.75,1.43855297]
[1756717028139,1.43855297,202.86,202.75,1.43855297]
[1756717028330,122.52,202.85,202.75,1.43855297]
[1756717030140,1.43855297,202.89,202.78,1.43855297]
[1756717030342,122.52,202.88,202.78,1.43855297]
[1756717036843,1.43855297,202.87,202.76,4.11422226]
[1756717037043,1.43855297,202.87,202.75,1.43855297]
[1756717039652,0.0347079,202.83,202.79,0.03565374]
[1756717039947,122.5,202.82,202.79,0.03565374]
[1756717048762,0.0347079,202.83,202.79,0.03565374]
[1756717048961,122.5147079,202.83,202.79,0.03565374]
[1756717050761,0.0347079,202.83,202.79,0.03565374]
[1756717054664,0.0347079,202.83,202.81,1.43855297]
[1756717063965,0.0347079,202.83,202.79,0.03565374]
[1756717064267,0.0347079,202.83,202.81,1.43855297]
[1756717065269,0.0347079,202.83,202.81,1.93855297]
[1756717065467,75.75633055,202.93,202.85,1.43855297]
[1756717065670,122.4,202.92,202.85,1.43855297]
[1756717066168,122.4,202.92,202.88,1.43855297]
[1756717066668,122.4,202.92,202.88,1.47633698]
[1756717068170,122.4,202.92,202.88,0.03778401]
[1756717069572,1.43855297,202.91,202.88,0.03778401]
[1756717072080,122.9,202.92,202.88,0.03778401]
[1756717072376,124.33855297,202.92,202.88,0.03778401]
[1756717079180,123.83855297,202.92,202.88,0.03778401]
[1756717082086,331.4,202.98,202.88,0.03778401]
[1756717082288,1.43855297,202.96,202.88,0.03778401]
[1756717082485,122.34,202.95,202.88,1.47633698]
[1756717087992,331.4,202.98,202.88,1.47633698]
[1756717088289,122.3,202.97,202.88,1.47633698]
[1756717089391,122.3,202.96,202.88,1.47633698]
[1756717089692,122.3,202.96,202.91,1.43855297]
[1756717091892,122.3,202.96,202.88,0.03778401]
[1756717093091,122.3,202.96,202.89,1.43855297]
[1756717100193,122.3,202.96,202.92,1.43855297]
[1756717101096,331.4,202.98,202.95,1.43855297]
[1756717101297,122.24,202.98,202.95,1.43855297]
[1756717104396,122.22,203.03,202.95,1.43855297]
[1756717104596,122.22,203.03,202.98,1.43855297]
[1756717105001,122.22,203.03,202.99,1.43855297]
[1756717106904,122.22,203.03,202.98,0.03782068]
[1756717110500,5.50667887,203.12,203.0,1.43855297]
[1756717110705,5.50667887,203.12,202.98,0.03782068]
[1756717110706,1.43855297,203.14,203.03,1.43855297]
[1756717111008,23.9,203.13,203.03,1.43855297]
[1756717111196,23.9,203.13,203.06,0.03550914]
[1756717113309,23.9,203.13,203.06,1.47406211]
[1756717119515,23.9,203.13,203.06,0.03550914]
[1756717119716,23.9,203.13,203.06,1.47406211]
[1756717122619,23.9,203.13,203.06,0.03550914]
[1756717125419,1.43855297,203.11,203.06,0.03550914]
[1756717125922,45.56,203.1,203.06,0.03550914]
[1756717126221,66.14,203.15,203.06,1.47406211]
[1756717127821,66.14,203.15,203.06,0.03550914]
[1756717128121,66.14,203.15,203.06,1.47406211]
[1756717129027,66.14,203.15,203.06,0.03550914]
[1756717129925,1.43855297,203.14,203.06,0.03550914]
[1756717132625,0.85721676,203.18,203.06,0.03550914]
[1756717132928,86.68,203.14,203.06,0.03550914]
[1756717134931,86.68,203.14,203.06,1.47406211]
[1756717139331,86.68,203.14,203.06,0.03550914]
[1756717141931,105.14,203.15,203.06,0.03550914]
[1756717142232,0.85721676,203.18,203.08,1.43855297]
[1756717142531,122.02,203.16,203.08,1.43855297]
[1756717142926,122.02,203.16,203.1,0.03548169]
[1756717143934,1.43855297,203.15,203.1,0.03548169]
[1756717145431,1.43855297,203.12,203.1,0.03548169]
[1756717146233,1.43855297,203.12,202.97,1.43855297]
[1756717146433,1.43855297,203.08,202.97,1.43855297]
[1756717146635,12.37855297,203.08,202.97,1.43855297]
[1756717147538,0.85723787,203.14,203.03,1.43855297]
[1756717147839,11.9,203.13,203.03,1.43855297]
[1756717148030,21.7,203.14,203.03,1.43855297]
[1756717148331,1.43855297,203.13,202.92,4.11135882]
[1756717148531,1.43855297,203.04,202.92,1.43855297]
[1756717148838,18.04,203.03,202.92,1.43855297]
[1756717149936,1.43855297,203.01,202.92,1.43855297]
[1756717150134,1.43855297,203.01,202.89,1.43855297]
[1756717150635,19.93855297,203.05,202.92,1.43855297]
[1756717153237,18.5,203.05,202.92,1.43855297]
[1756717153440,18.5,203.05,202.95,1.43855297]
[1756717153737,0.8571323,203.17,202.9,4.11135882]
[1756717153738,1.43855297,203.08,202.98,1.43855297]
[1756717153939,20.26,203.1,202.98,1.43855297]
[1756717160950,20.26,203.1,203.01,1.43855297]
[1756717161845,0.8571323,203.17,203.04,1.43855297]
[1756717162051,1.43855297,203.16,203.04,1.43855297]
[1756717163951,1.43855297,203.16,203.0,4.11135882]
[1756717164249,1.43855297,203.16,203.04,1.43855297]
[1756717164655,1.43855297,203.13,203.01,1.43855297]
[1756717164855,1.43855297,203.1,203.01,1.43855297]
[1756717170859,1.43855297,203.13,203.01,1.43855297]
[1756717178458,1.43855297,203.14,203.01,1.43855297]
[1756717182770,1.43855297,203.14,203.04,1.43855297]
[1756717186373,1.43855297,203.14,203.0,4.11135882]
[1756717186578,1.43855297,203.14,203.02,1.43855297]
[1756717191382,49.1571323,203.17,203.02,1.43855297]
[1756717191681,1.43855297,203.14,203.02,1.43855297]
[1756717194677,49.1571323,203.17,203.05,1.43855297]
[1756717194876,49.1571323,203.17,203.0,4.11135882]
[1756717194877,50.59568527,203.17,203.0,4.11135882]
[1756717195078,49.73855297,203.17,203.06,1.43855297]
[1756717195776,48.3,203.17,203.06,1.43855297]
[1756717195978,48.3,203.17,203.08,1.43855297]
[1756717196884,331.18,203.22,203.11,1.43855297]
[1756717200382,331.18,203.22,203.06,4.11135882]
[1756717200383,1.43855297,203.2,203.1,1.43855297]
[1756717200575,331.18,203.22,203.1,1.43855297]
[1756717200782,331.18,203.22,203.13,1.43855297]
[1756717201681,331.18,203.22,203.1,4.11135882]
[1756717201682,331.18,203.22,203.16,1.43855297]
[1756717202888,122.1,203.23,203.16,1.43855297]
[1756717203087,1.43855297,203.29,203.19,1.43855297]
[1756717203382,112.18,203.29,203.19,1.43855297]
[1756717204892,122.82,203.32,203.24,1.43855297]
[1756717206887,1.43855297,203.36,203.24,1.43855297]
[1756717207090,1.43855297,203.33,203.16,4.12878542]
[1756717207291,1.43855297,203.3,203.17,1.43855297]
[1756717207493,123.58,203.35,203.17,1.43855297]
[1756717207690,1.43855297,203.27,203.17,1.43855297]
[1756717207990,24.84,203.26,203.17,1.43855297]
[1756717208191,24.84,203.26,203.14,1.43855297]
[1756717209587,330.84,203.3,203.09,7.54878542]
[1756717209588,330.84,203.3,203.22,1.43855297]
[1756717209791,454.74,203.3,203.22,1.43855297]
[1756717210289,330.84,203.3,203.22,1.43855297]
[1756717210490,330.84,203.3,203.25,1.43855297]
[1756717210689,330.84,203.3,203.28,1.43855297]
[1756717211895,330.84,203.3,203.27,0.03625607]
[1756717212095,330.84,203.3,203.27,1.47480904]
[1756717212494,123.85760558,203.31,203.27,1.47480904]
[1756717212897,0.03760558,203.31,203.3,1.43855297]
[1756717213595,0.85614121,203.42,203.3,1.43855297]
[1756717213898,0.82,203.43,203.38,1.43855297]
[1756717214195,0.82,203.43,203.21,5.44091102]
[1756717214196,1.43855297,203.4,203.23,4.12878542]
[1756717214387,32.92,203.39,203.29,1.43855297]
[1756717214995,32.92,203.39,203.32,0.03512784]
[1756717215196,32.92,203.39,203.32,1.47368081]
[1756717215397,33.94,203.38,203.32,1.47368081]
[1756717215696,34.22,203.38,203.32,1.47368081]
[1756717215898,34.48,203.38,203.32,1.47368081]
[1756717216297,33.5,203.42,203.32,1.47368081]
[1756717216797,33.5,203.42,203.22,5.56733839]
[1756717216798,33.5,203.42,203.35,1.43855297]
[1756717217002,0.85586749,203.49,203.38,1.43855297]
[1756717217300,33.94,203.48,203.38,1.43855297]
[1756717217495,0.85586749,203.49,203.38,1.43855297]
[1756717217798,33.9,203.48,203.41,1.47342623]
[1756717218498,33.9,203.48,203.41,0.03487326]
[1756717219897,1.43855297,203.44,203.41,0.03487326]
[1756717220302,0.85577278,203.52,203.41,0.03487326]
[1756717220303,67.82,203.43,203.41,0.03487326]
[1756717220899,69.75855297,203.43,203.41,0.03487326]
[1756717221102,67.82,203.43,203.41,0.03487326]
[1756717221905,1.47184696,203.44,203.41,0.03487326]
[1756717222203,27.26,203.43,203.41,0.03487326]
[1756717222403,1.43855297,203.42,203.41,0.03487326]
[1756717222598,1.93855297,203.42,203.41,0.03487326]
[1756717223000,1.93855297,203.42,203.28,1.43855297]
[1756717223207,1.93855297,203.42,203.22,1.43855297]
[1756717223208,1.43855297,203.35,203.22,1.43855297]
[1756717223406,1.43855297,203.32,203.21,1.43855297]
[1756717224309,1.43855297,203.26,203.24,0.03488102]
[1756717224510,61.82,203.25,203.24,0.03488102]
[1756717224710,61.82,203.25,203.13,1.43855297]
[1756717224908,1.43855297,203.23,203.14,4.35322119]
[1756717225104,345.41,203.39,203.16,1.43855297]
[1756717225408,345.41,203.39,203.15,4.35322119]
[1756717225409,1.43855297,203.29,203.19,1.43855297]
[1756717225605,53.36,203.28,203.2,4.35322119]
[1756717225810,53.36,203.27,203.21,4.35322119]
[1756717226002,53.36,203.27,203.22,4.35322119]
[1756717226305,53.36,203.27,203.23,4.35322119]
[1756717226496,53.36,203.27,203.24,4.35322119]
[1756717226697,1.43855297,203.32,203.25,4.35322119]
[1756717226910,1.43855297,203.32,203.26,4.35322119]
[1756717227109,39.36,203.31,203.27,4.35322119]
[1756717227309,1.43855297,203.33,203.28,4.35322119]
[1756717227608,1.43801261,203.36,203.29,4.35322119]
[1756717227798,1.43801261,203.33,203.3,4.35322119]
[1756717227998,1.43801261,203.33,203.28,0.03391692]
[1756717228510,1.43801261,203.33,203.29,4.35061044]
[1756717228703,1.43801261,203.33,203.3,4.35064621]
[1756717228908,1.43801261,203.33,203.28,0.03391692]
[1756717229108,1.43801261,203.33,203.29,4.35085146]
[1756717229309,1.43801261,203.3,203.28,0.03391692]
[1756717229504,1.43801261,203.3,203.0,8.16136653]
[1756717229505,2.87602522,203.3,203.13,1.43801261]
[1756717229709,1.43801261,203.24,203.14,4.35481243]
[1756717229909,15.68,203.23,203.15,4.35481243]
[1756717230112,15.68,203.23,203.16,4.35481243]
[1756717230322,1.43801261,203.21,203.17,4.35481243]
[1756717230509,1.43801261,203.2,203.18,4.35481243]
[1756717230812,1.43801261,203.2,203.19,4.35481243]
[1756717231011,126.51801261,203.2,203.19,4.35481243]
[1756717231311,125.06,203.2,203.19,4.35805357]
[1756717231904,125.56,203.2,203.19,4.35805357]
[1756717232111,126.99801261,203.2,203.04,1.43801261]
[1756717232304,1.43801261,203.12,203.0,1.43801261]
[1756717232509,125.02,203.11,203.0,1.43801261]
[1756717232706,0.03738434,203.08,203.03,1.43801261]
[1756717235409,0.03738434,203.08,203.0,1.43801261]
[1756717235410,0.03738434,203.08,203.06,1.43801261]
[1756717235812,0.03738434,203.08,203.06,1.93801261]
[1756717236614,0.24,203.18,203.07,0.5]
[1756717236811,0.24,203.18,203.06,1.43801261]
[1756717237117,330.7,203.25,203.09,1.43801261]
[1756717237316,1.43801261,203.23,203.09,1.43801261]
[1756717238013,125.02,203.22,203.12,1.43801261]
[1756717238516,1.43801261,203.21,203.03,4.0795431]
[1756717238715,1.43801261,203.18,203.05,1.43801261]
[1756717239816,1.43801261,203.15,203.02,1.43801261]
[1756717240118,42.34,203.14,202.97,4.0795431]
[1756717240415,1.43801261,203.12,203.0,1.43801261]
[1756717241214,42.34,203.14,203.0,1.43801261]
[1756717241420,1.43801261,203.12,203.0,1.43801261]
[1756717242011,3.07498766,203.13,202.96,3.07498766]
[1756717242814,3.07498766,203.16,202.99,3.07498766]
[1756717243018,1.94,203.15,203.02,3.07498766]
[1756717243217,29.42,203.15,203.02,3.07498766]
[1756717245924,57.04,203.14,203.02,3.07498766]
[1756717248227,57.04,203.14,202.99,3.07498766]
[1756717249030,60.11498766,203.14,202.99,3.07498766]
[1756717251131,3.07498766,203.14,202.99,3.07498766]
[1756717251329,57.1,203.13,202.99,3.07498766]
[1756717252428,57.16,203.12,202.99,3.07498766]
[1756717252834,3.07498766,203.17,202.99,3.07498766]
[1756717253026,54.62,203.16,202.99,3.07498766]
[1756717253729,34.8,203.15,202.99,3.07498766]
[1756717254131,3.07498766,203.17,202.99,3.07498766]
[1756717254425,4.34,203.16,202.99,3.07498766]
[1756717254622,3.06,203.15,203.0,4.31424443]
[1756717254824,3.07498766,203.14,203.01,4.31424443]
[1756717255027,3.07498766,203.14,203.02,4.31424443]
[1756717255231,3.07498766,203.14,203.03,4.31424443]
[1756717255426,3.07498766,203.14,203.04,4.31424443]
[1756717255631,3.07498766,203.14,203.05,4.31424443]
[1756717255834,3.07498766,203.14,202.96,3.07498766]
[1756717256033,3.07498766,203.14,202.97,4.31775687]
[1756717256232,3.07498766,203.11,202.98,4.31775687]
[1756717256434,3.07498766,203.11,202.99,4.31775687]
[1756717256635,3.07498766,203.11,203.0,4.31775687]
[1756717256835,3.07498766,203.11,203.01,4.31775687]
[1756717257035,3.07498766,203.11,203.02,4.31775687]
[1756717257235,3.07498766,203.11,203.03,4.31775687]
[1756717257534,3.07498766,203.11,203.04,4.31665402]
[1756717257734,3.07498766,203.11,202.94,3.07498766]
[1756717257927,3.07498766,203.11,202.95,4.31683061]
[1756717258125,3.07498766,203.11,202.96,4.31683061]
[1756717258325,3.07498766,203.14,202.97,7.39181827]
[1756717258533,3.07498766,203.14,202.98,4.31683061]
[1756717258833,14.79,203.24,202.87,7.52]
[1756717258834,14.79,203.24,203.0,3.07498766]
[1756717259135,3.07498766,203.17,203.01,4.31683061]
[1756717259437,3.07498766,203.17,203.02,4.31683061]
[1756717259631,3.07498766,203.17,203.03,4.31683061]
[1756717259936,3.07498766,203.17,203.0,3.07498766]
[1756717260231,3.07498766,203.17,203.01,4.31520333]
[1756717260427,3.07498766,203.14,203.02,4.31520333]
[1756717260633,331.02,203.18,203.04,3.07498766]
[1756717260831,40.05498766,203.17,203.05,4.31520333]
[1756717261028,3.07498766,203.14,203.06,4.31520333]
[1756717261227,3.07498766,203.1,203.07,4.31520333]
[1756717261431,124.9,203.09,202.95,3.07498766]
[1756717261631,124.9,203.09,202.96,4.31938394]
[1756717261831,124.9,203.09,202.97,4.31938394]
[1756717262029,331.02,203.18,202.99,2.13592321]